fUSD/lending_fUSD_20260429
["ID","MTS","AMOUNT","RATE_DAILY","PERIOD"]
[421340811,1777472072000,500.0,8.275e-05,2]
[421340805,1777472072000,500.0,8.275e-05,2]
[421340807,1777472072000,500.0,8.275e-05,2]
[421340809,1777472072000,500.0,8.275e-05,2]
[421340808,1777472072000,500.0,8.275e-05,2]
[421340813,1777472073000,420.51962597,8.275e-05,2]
[421340814,1777472085000,500.0,8.275e-05,2]
[421340815,1777472086000,246.11730297,8.275e-05,2]
[421340816,1777472102000,150.0,8.275e-05,2]
[421340817,1777472112000,307.848678,3.01e-05,120]
[421340821,1777472140000,307.848674,0.000301,120]
[421340822,1777472169000,307.848674,0.000301,120]
[421340823,1777472183000,307.848674,0.000301,120]
[421340825,1777472254000,307.848674,0.000301,120]
[421340826,1777472265000,307.848674,0.000301,120]
[421340827,1777472272000,1000.0,0.000155,30]
[421340828,1777472273000,244.0,0.0002,120]
[421340829,1777472274000,1000.0,0.000166,120]
[421340830,1777472280000,307.848674,0.000301,120]
[421340832,1777472285000,500.0,8.275e-05,2]
[421340831,1777472285000,353.39250965,8.275e-05,2]
[421340833,1777472292000,6434.97074674,0.00030079,120]
[421340835,1777472298000,339.81857222,8.275e-05,2]
[421340834,1777472298000,500.0,8.275e-05,2]
[421340838,1777472303000,2138.24,0.00029899,120]
[421340837,1777472303000,2138.24,0.00028599,120]
[421340836,1777472303000,2138.24,0.00027399,120]
[421340839,1777472313000,522.28211208,8.275e-05,2]
[421340846,1777472336000,1000.0,0.000166,120]
[421340845,1777472336000,244.0,0.0002,120]
[421340847,1777472342000,1256.13,0.00030137,120]
[421340848,1777472365000,500.0,8.275e-05,2]
[421340852,1777472383000,500.0,8.275e-05,2]
[421340853,1777472397000,1000.0,0.000155,30]
[421340854,1777472398000,500.0,8.275e-05,2]
[421340855,1777472401000,1200.0,8.275e-05,2]
[421340856,1777472410000,500.0,8.275e-05,2]
[421340857,1777472422000,500.0,8.275e-05,2]
[421340860,1777472434000,500.0,8.275e-05,2]
[421340862,1777472446000,500.0,8.275e-05,2]
[421340863,1777472457000,500.0,8.275e-05,2]
[421340864,1777472470000,500.0,8.275e-05,2]
[421340865,1777472481000,500.0,8.275e-05,2]
[421340868,1777472488000,269.775,8.11e-05,2]
[421340866,1777472488000,267.87987711,8.11e-05,2]
[421340867,1777472488000,2658.46712289,8.11e-05,2]
[421340869,1777472490000,174.19642121,0.00030136,120]
[421340870,1777472492000,500.0,8.275e-05,2]
[421340871,1777472506000,500.0,8.275e-05,2]
[421340872,1777472517000,500.0,8.275e-05,2]
[421340873,1777472529000,500.0,8.275e-05,2]
[421340874,1777472541000,500.0,8.275e-05,2]
[421340875,1777472554000,500.0,8.275e-05,2]
[421340876,1777472565000,500.0,8.275e-05,2]
[421340877,1777472577000,500.0,8.275e-05,2]
[421340878,1777472588000,500.0,8.275e-05,2]
[421340879,1777472600000,500.0,8.275e-05,2]
[421340880,1777472611000,500.0,8.275e-05,2]
[421340881,1777472611000,500.0,8.275e-05,2]
[421340883,1777472628000,500.0,8.275e-05,2]
[421340884,1777472644000,500.0,8.275e-05,2]
[421340885,1777472656000,71.76787711,8.275e-05,2]
[421340886,1777472656000,428.23212289,8.275e-05,2]
[421340887,1777472668000,500.0,8.275e-05,2]
[421340888,1777472668000,500.0,8.275e-05,2]
[421340889,1777472686000,500.0,8.275e-05,2]
[421340890,1777472701000,480.0,8.275e-05,2]
[421340892,1777472703000,500.0,8.275e-05,2]
[421340891,1777472703000,500.0,8.275e-05,2]
[421340895,1777472709000,1000.0,0.000155,30]
[421340914,1777472764000,500.0,8.275e-05,2]
[421340917,1777472821000,500.0,8.275e-05,2]
[421340916,1777472821000,500.0,8.275e-05,2]
[421340918,1777472822000,500.0,8.275e-05,2]
[421340919,1777472823000,300.0,8.275e-05,2]
[421340920,1777472834000,1000.0,0.000155,30]
[421340934,1777472870000,500.0,0.00029452,120]
[421340939,1777472958000,1167.35,4.516e-05,2]
[421340940,1777472959000,1167.35,4.754e-05,2]
[421340944,1777472960000,1167.35,5.467e-05,2]
[421340943,1777472960000,377.62212289,5.229e-05,2]
[421340942,1777472960000,789.72787711,5.229e-05,2]
[421340941,1777472960000,1167.35,4.992e-05,2]
[421340945,1777472974000,1167.35,5.705e-05,2]
[421340946,1777472991000,1167.35,5.943e-05,2]
[421340947,1777473006000,1167.35,6.18e-05,2]
[421340957,1777473036000,1167.35,6.418e-05,2]
[421340999,1777473052000,1167.35,6.656e-05,2]
[421341001,1777473083000,1167.35,6.893e-05,2]
[421341003,1777473083000,283.58787711,7.369e-05,2]
[421341002,1777473083000,1167.35,7.131e-05,2]
[421341006,1777473083000,1167.35,7.844e-05,2]
[421341005,1777473083000,1167.35,7.606e-05,2]
[421341007,1777473083000,1167.35,8.082e-05,2]
[421341004,1777473083000,883.76212289,7.369e-05,2]
[421341010,1777473194000,250.0,7.538e-05,2]
[421341012,1777473195000,250.0,7.06e-05,2]
[421341013,1777473195000,250.0,6.537e-05,2]
[421341011,1777473195000,597.37475676,8.275e-05,2]
[421341014,1777473196000,500.0,8.275e-05,2]
[421341015,1777473196000,500.0,8.275e-05,2]
[421341022,1777473197000,328.65379166,8.275e-05,2]
[421341021,1777473197000,152.63524324,8.275e-05,2]
[421341020,1777473197000,500.0,8.275e-05,2]
[421341017,1777473197000,500.0,8.275e-05,2]
[421341019,1777473197000,500.0,8.275e-05,2]
[421341016,1777473197000,500.0,8.275e-05,2]
[421341024,1777473197000,500.0,8.275e-05,2]
[421341018,1777473197000,500.0,8.275e-05,2]
[421341023,1777473197000,500.0,8.275e-05,2]
[421341029,1777473197000,500.0,8.275e-05,2]
[421341026,1777473197000,500.0,8.275e-05,2]
[421341027,1777473197000,500.0,8.275e-05,2]
[421341028,1777473197000,500.0,8.275e-05,2]
[421341031,1777473197000,500.0,8.275e-05,2]
[421341030,1777473197000,500.0,8.275e-05,2]
[421341032,1777473197000,171.35620834,8.275e-05,2]
[421341034,1777473197000,500.0,8.275e-05,2]
[421341033,1777473197000,328.64379166,8.275e-05,2]
[421341035,1777473197000,500.0,8.275e-05,2]
[421341025,1777473197000,500.0,8.275e-05,2]
[421341036,1777473198000,1852.42,7.802e-05,2]
[421341038,1777473198000,-474.202935,8.276e-05,2]
[421341039,1777473198000,-89466.74248487,8.276e-05,2]
[421341037,1777473198000,-38174.99999999,8.276e-05,2]
[421341071,1777473199000,-766.39805676,9.67e-05,2]
[421341067,1777473199000,-260.74,9.654e-05,2]
[421341069,1777473199000,-221.21167742,9.67e-05,2]
[421341068,1777473199000,-500.0,9.658e-05,2]
[421341062,1777473199000,-151.0,9.611e-05,2]
[421341063,1777473199000,-771.01748645,9.611e-05,2]
[421341057,1777473199000,-150.76,9.514e-05,2]
[421341065,1777473199000,-174.61919141,9.611e-05,2]
[421341064,1777473199000,-290.26104003,9.611e-05,2]
[421341061,1777473199000,-418.93791288,9.611e-05,2]
[421341059,1777473199000,-433.28,9.587e-05,2]
[421341060,1777473199000,-200.0,9.611e-05,2]
[421341058,1777473199000,-2693.46,9.574e-05,2]
[421341072,1777473199000,-1142.96016248,9.67e-05,2]
[421341066,1777473199000,-217.15233879,9.611e-05,2]
[421341056,1777473199000,-500.0,9.365e-05,2]
[421341054,1777473199000,-41233.55468269,9.219e-05,2]
[421341040,1777473199000,-648.87286559,8.276e-05,2]
[421341041,1777473199000,-4351.12713441,8.276e-05,2]
[421341044,1777473199000,-1167.35,8.557e-05,2]
[421341042,1777473199000,-300.0,8.276e-05,2]
[421341043,1777473199000,-1167.35,8.32e-05,2]
[421341045,1777473199000,-1167.35,8.795e-05,2]
[421341070,1777473199000,-829.67010334,9.67e-05,2]
[421341046,1777473199000,-150.76,8.88e-05,2]
[421341047,1777473199000,-1167.35,9.033e-05,2]
[421341048,1777473199000,-168.83,9.04e-05,2]
[421341049,1777473199000,-300.0,9.103e-05,2]
[421341051,1777473199000,-300.0,9.103e-05,2]
[421341053,1777473199000,-19744.57531731,9.219e-05,2]
[421341055,1777473199000,-777.49,9.227e-05,2]
[421341052,1777473199000,-2000.0,9.143e-05,2]
[421341074,1777473199000,-150.99,9.67e-05,2]
[421341050,1777473199000,-5000.0,9.103e-05,2]
[421341075,1777473199000,-499.99,9.67e-05,2]
[421341096,1777473199000,-150.76,0.00010782,2]
[421341095,1777473199000,-623.0,0.00010427,2]
[421341097,1777473199000,-160.0,0.00010808,2]
[421341098,1777473199000,-162.31979731,0.00010808,2]
[421341106,1777473199000,-500.0,0.00010958,2]
[421341101,1777473199000,-927.0,0.0001083,2]
[421341093,1777473199000,-2138.97074768,0.0001025,2]
[421341099,1777473199000,-1266.0,0.0001083,2]
[421341103,1777473199000,-1600.0,0.00010929,2]
[421341105,1777473199000,-500.0,0.00010958,2]
[421341102,1777473199000,-5477.19706171,0.000109,2]
[421341108,1777473199000,-150.0,0.00010959,2]
[421341107,1777473199000,-500.0,0.00010958,2]
[421341073,1777473199000,-49782.97,9.67e-05,2]
[421341100,1777473199000,-1220.0,0.0001083,2]
[421341094,1777473199000,-2000.0,0.00010285,2]
[421341104,1777473199000,-500.0,0.00010958,2]
[421341092,1777473199000,-181.0801015,0.00010159,2]
[421341076,1777473199000,-299.99,9.67e-05,2]
[421341091,1777473199000,-150.76,0.00010148,2]
[421341077,1777473199000,-999.99,9.67e-05,2]
[421341088,1777473199000,-151.0,0.0001,2]
[421341080,1777473199000,-151.0,0.0001,2]
[421341081,1777473199000,-151.0,0.0001,2]
[421341082,1777473199000,-151.0,0.0001,2]
[421341078,1777473199000,-1000.0,9.687e-05,2]
[421341079,1777473199000,-151.0,0.0001,2]
[421341086,1777473199000,-151.0,0.0001,2]
[421341085,1777473199000,-151.0,0.0001,2]
[421341089,1777473199000,-151.0,0.0001,2]
[421341084,1777473199000,-151.0,0.0001,2]
[421341087,1777473199000,-151.0,0.0001,2]
[421341083,1777473199000,-151.0,0.0001,2]
[421341090,1777473199000,-90000.09,0.00010102,2]
[421341149,1777473200000,-556.0,0.00012055,5]
[421341146,1777473200000,-2172009.05633825,0.00012,2]
[421341143,1777473200000,-5734.25619333,0.00011933,2]
[421341142,1777473200000,-445.0,0.00011906,5]
[421341141,1777473200000,-1524.66,0.000119,2]
[421341144,1777473200000,-3873.42774407,0.00011951,2]
[421341140,1777473200000,-6864.54,0.000119,2]
[421341139,1777473200000,-1716.03,0.000119,2]
[421341148,1777473200000,-300.0,0.00012054,2]
[421341134,1777473200000,-166.66,0.00011288,2]
[421341145,1777473200000,-181.56137184,0.00011951,2]
[421341147,1777473200000,-150.76,0.00012051,2]
[421341157,1777473200000,-500.0,0.00012615,2]
[421341150,1777473200000,-3510.24,0.00012293,2]
[421341152,1777473200000,-2169.51546811,0.00012425,2]
[421341153,1777473200000,-166.8,0.00012494,2]
[421341154,1777473200000,-5477.19706167,0.00012522,2]
[421341160,1777473200000,-1578.0,0.00012893,2]
[421341156,1777473200000,-3510.24,0.000126,2]
[421341159,1777473200000,-5734.25619333,0.00012873,2]
[421341158,1777473200000,-150.76,0.00012685,2]
[421341155,1777473200000,-2000.0,0.00012571,2]
[421341162,1777473200000,-1578.0,0.00012893,2]
[421341133,1777473200000,-166.66,0.00011178,2]
[421341151,1777473200000,-1600.0,0.00012296,2]
[421341132,1777473200000,-5734.25619333,0.00011099,2]
[421341118,1777473200000,-6864.54,0.00011,2]
[421341131,1777473200000,-5734.25619333,0.00011099,2]
[421341172,1777473200000,-3510.24,0.00013522,2]
[421341109,1777473200000,-166.66,0.00010959,2]
[421341110,1777473200000,-150.0,0.00010959,2]
[421341117,1777473200000,-1716.03,0.00011,2]
[421341116,1777473200000,-1716.03,0.00011,2]
[421341113,1777473200000,-300.0,0.00010999,2]
[421341114,1777473200000,-1716.03,0.00011,2]
[421341111,1777473200000,-3032.0,0.00010959,2]
[421341115,1777473200000,-1716.03,0.00011,2]
[421341112,1777473200000,-500.0,0.00010999,2]
[421341122,1777473200000,-1524.66,0.00011,2]
[421341120,1777473200000,-6864.54,0.00011,2]
[421341121,1777473200000,-6864.54,0.00011,2]
[421341119,1777473200000,-6864.54,0.00011,2]
[421341126,1777473200000,-166.66,0.00011068,2]
[421341125,1777473200000,-1524.66,0.00011,2]
[421341123,1777473200000,-1524.66,0.00011,2]
[421341127,1777473200000,-2169.51546811,0.00011099,2]
[421341124,1777473200000,-1524.66,0.00011,2]
[421341136,1777473200000,-150.76,0.00011417,2]
[421341138,1777473200000,-166.66,0.00011507,2]
[421341129,1777473200000,-5734.25619335,0.00011099,2]
[421341128,1777473200000,-2169.51546811,0.00011099,2]
[421341135,1777473200000,-166.66,0.00011397,2]
[421341137,1777473200000,-2000.0,0.00011428,2]
[421341130,1777473200000,-5734.25619333,0.00011099,2]
[421341164,1777473200000,-162.0,0.00012893,2]
[421341216,1777473200000,-500.0,0.00013698,2]
[421341165,1777473200000,-3510.24,0.00012908,2]
[421341192,1777473200000,-500.0,0.00013698,2]
[421341197,1777473200000,-500.0,0.00013698,2]
[421341207,1777473200000,-500.0,0.00013698,2]
[421341196,1777473200000,-500.0,0.00013698,2]
[421341198,1777473200000,-500.0,0.00013698,2]
[421341199,1777473200000,-500.0,0.00013698,2]
[421341200,1777473200000,-500.0,0.00013698,2]
[421341201,1777473200000,-500.0,0.00013698,2]
[421341202,1777473200000,-500.0,0.00013698,2]
[421341203,1777473200000,-500.0,0.00013698,2]
[421341204,1777473200000,-500.0,0.00013698,2]
[421341193,1777473200000,-500.0,0.00013698,2]
[421341206,1777473200000,-500.0,0.00013698,2]
[421341209,1777473200000,-500.0,0.00013698,2]
[421341208,1777473200000,-500.0,0.00013698,2]
[421341210,1777473200000,-500.0,0.00013698,2]
[421341211,1777473200000,-500.0,0.00013698,2]
[421341217,1777473200000,-500.0,0.00013698,2]
[421341219,1777473200000,-500.0,0.00013698,2]
[421341213,1777473200000,-500.0,0.00013698,2]
[421341214,1777473200000,-500.0,0.00013698,2]
[421341215,1777473200000,-500.0,0.00013698,2]
[421341218,1777473200000,-505.11538992,0.00013698,2]
[421341212,1777473200000,-500.0,0.00013698,2]
[421341205,1777473200000,-504.68411572,0.00013698,2]
[421341189,1777473200000,-500.0,0.00013698,2]
[421341171,1777473200000,-623.0,0.00013427,2]
[421341190,1777473200000,-500.0,0.00013698,2]
[421341170,1777473200000,-433.28,0.00013421,2]
[421341163,1777473200000,-1578.0,0.00012893,2]
[421341167,1777473200000,-3510.24,0.00013215,2]
[421341166,1777473200000,-250.0,0.00013,2]
[421341161,1777473200000,-1578.0,0.00012893,2]
[421341169,1777473200000,-150.76,0.00013319,2]
[421341168,1777473200000,-340.0,0.00013268,2]
[421341174,1777473200000,-300.0,0.00013697,2]
[421341175,1777473200000,-500.0,0.00013698,2]
[421341179,1777473200000,-500.0,0.00013698,2]
[421341176,1777473200000,-500.0,0.00013698,2]
[421341173,1777473200000,-1600.0,0.00013662,2]
[421341194,1777473200000,-506.61,0.00013698,2]
[421341181,1777473200000,-500.0,0.00013698,2]
[421341178,1777473200000,-500.0,0.00013698,2]
[421341191,1777473200000,-500.0,0.00013698,2]
[421341187,1777473200000,-500.0,0.00013698,2]
[421341188,1777473200000,-500.0,0.00013698,2]
[421341186,1777473200000,-2138.24,0.00013698,2]
[421341195,1777473200000,-500.0,0.00013698,2]
[421341185,1777473200000,-2138.24,0.00013698,2]
[421341182,1777473200000,-500.0,0.00013698,2]
[421341183,1777473200000,-2138.24,0.00013698,2]
[421341180,1777473200000,-500.0,0.00013698,2]
[421341177,1777473200000,-500.0,0.00013698,2]
[421341184,1777473200000,-2138.24,0.00013698,2]
[421341256,1777473201000,-150.76,0.00014588,2]
[421341258,1777473201000,-300.0,0.00015,2]
[421341257,1777473201000,-5734.25619333,0.00014751,2]
[421341264,1777473201000,-1600.0,0.00015028,2]
[421341255,1777473201000,-2169.51546811,0.0001455,2]
[421341249,1777473201000,-1000.0,0.000139,2]
[421341253,1777473201000,-168.66,0.00014372,2]
[421341254,1777473201000,-168.66,0.00014372,2]
[421341248,1777473201000,-711.0,0.000139,2]
[421341259,1777473201000,-160.0,0.00015,2]
[421341252,1777473201000,-340.0,0.00014268,2]
[421341260,1777473201000,-4296.0,0.00015,2]
[421341269,1777473201000,-150.0,0.00015041,2]
[421341262,1777473201000,-447.0,0.00015,2]
[421341261,1777473201000,-1075.0,0.00015,2]
[421341266,1777473201000,-200.0,0.00015035,2]
[421341268,1777473201000,-150.0,0.00015041,2]
[421341251,1777473201000,-201.09,0.00013972,2]
[421341270,1777473201000,-150.0,0.00015041,2]
[421341265,1777473201000,-168.88,0.00015035,2]
[421341276,1777473201000,-150.0,0.00015041,2]
[421341267,1777473201000,-200.0,0.00015035,2]
[421341273,1777473201000,-150.0,0.00015041,2]
[421341272,1777473201000,-259.99293565,0.00015041,2]
[421341271,1777473201000,-150.0,0.00015041,2]
[421341263,1777473201000,-643.41994756,0.00015027,2]
[421341250,1777473201000,-150.76,0.00013954,2]
[421341240,1777473201000,-422.83362062,0.00013699,2]
[421341247,1777473201000,-844.0,0.000139,2]
[421341221,1777473201000,-500.0,0.00013698,2]
[421341231,1777473201000,-153.49,0.00013699,2]
[421341222,1777473201000,-500.0,0.00013698,2]
[421341220,1777473201000,-500.0,0.00013698,2]
[421341224,1777473201000,-500.0,0.00013698,2]
[421341223,1777473201000,-201.08,0.00013698,2]
[421341226,1777473201000,-500.0,0.00013698,2]
[421341230,1777473201000,-184.19,0.00013699,2]
[421341229,1777473201000,-221.03,0.00013699,2]
[421341227,1777473201000,-500.0,0.00013698,2]
[421341225,1777473201000,-500.0,0.00013698,2]
[421341228,1777473201000,-2500.0,0.00013699,2]
[421341232,1777473201000,-767.48,0.00013699,2]
[421341235,1777473201000,-240.0,0.00013699,2]
[421341234,1777473201000,-180.0,0.00013699,2]
[421341275,1777473201000,-150.0,0.00015041,2]
[421341237,1777473201000,-240.0,0.00013699,2]
[421341233,1777473201000,-180.0,0.00013699,2]
[421341242,1777473201000,-2000.0,0.00013714,2]
[421341239,1777473201000,-600.0,0.00013699,2]
[421341243,1777473201000,-5734.25619333,0.00013812,2]
[421341238,1777473201000,-183.0,0.00013699,2]
[421341241,1777473201000,-180.0,0.00013699,2]
[421341245,1777473201000,-1220.0,0.0001383,2]
[421341244,1777473201000,-1266.0,0.0001383,2]
[421341246,1777473201000,-927.0,0.0001383,2]
[421341236,1777473201000,-360.0,0.00013699,2]
[421341274,1777473201000,-150.0,0.00015041,2]
[421341278,1777473201000,-150.0,0.00015111,2]
[421341300,1777473201000,-150.0,0.00015877,2]
[421341303,1777473201000,-150.0,0.00015877,2]
[421341310,1777473201000,-150.0,0.00016155,2]
[421341312,1777473201000,-2000.0,0.000162,2]
[421341313,1777473201000,-150.0,0.00016225,2]
[421341311,1777473201000,-150.0,0.00016155,2]
[421341315,1777473201000,-150.0,0.00016295,2]
[421341322,1777473201000,-900.0,0.00016438,2]
[421341321,1777473201000,-1338.0,0.00016438,2]
[421341314,1777473201000,-340.0,0.00016268,2]
[421341277,1777473201000,-900.0,0.00015068,2]
[421341319,1777473201000,-623.0,0.00016427,2]
[421341316,1777473201000,-150.0,0.00016295,2]
[421341317,1777473201000,-150.0,0.00016364,2]
[421341318,1777473201000,-1600.0,0.00016394,2]
[421341323,1777473201000,-175.24373542,0.00016438,2]
[421341326,1777473201000,-166.66,0.00016508,2]
[421341328,1777473201000,-300.0,0.00016582,2]
[421341324,1777473201000,-150.76,0.00016491,2]
[421341325,1777473201000,-150.0,0.00016503,2]
[421341327,1777473201000,-150.0,0.00016573,2]
[421341331,1777473201000,-19376.2148485,0.00016583,2]
[421341332,1777473201000,-5734.25619333,0.0001663,2]
[421341330,1777473201000,-41115.0203759,0.00016583,2]
[421341329,1777473201000,-486.8025399,0.00016583,2]
[421341307,1777473201000,-150.0,0.00016016,2]
[421341308,1777473201000,-150.0,0.00016086,2]
[421341320,1777473201000,-150.0,0.00016434,2]
[421341306,1777473201000,-418.22058709,0.00016,2]
[421341304,1777473201000,-150.0,0.00015946,2]
[421341280,1777473201000,-150.76,0.00015222,2]
[421341286,1777473201000,-150.0,0.000154,2]
[421341279,1777473201000,-150.0,0.0001518,2]
[421341281,1777473201000,-150.0,0.0001525,2]
[421341287,1777473201000,-500.0,0.00015416,2]
[421341282,1777473201000,-340.0,0.00015268,2]
[421341284,1777473201000,-150.0,0.0001532,2]
[421341283,1777473201000,-200.0,0.00015278,2]
[421341285,1777473201000,-150.0,0.00015389,2]
[421341289,1777473201000,-150.0,0.00015459,2]
[421341298,1777473201000,-150.0,0.00015807,2]
[421341292,1777473201000,-150.0,0.00015598,2]
[421341305,1777473201000,-166.66,0.00015997,2]
[421341302,1777473201000,-150.0,0.00015877,2]
[421341301,1777473201000,-150.0,0.00015877,2]
[421341309,1777473201000,-150.0,0.00016155,4]
[421341290,1777473201000,-166.66,0.00015486,2]
[421341297,1777473201000,-150.0,0.00015737,2]
[421341299,1777473201000,-150.76,0.00015856,2]
[421341293,1777473201000,-150.0,0.00015598,2]
[421341296,1777473201000,-5734.25619333,0.00015691,2]
[421341288,1777473201000,-150.0,0.00015459,2]
[421341294,1777473201000,-150.0,0.00015598,2]
[421341295,1777473201000,-150.0,0.00015668,2]
[421341291,1777473201000,-150.0,0.00015529,2]
[421341333,1777473202000,-150.0,0.00016643,2]
[421341338,1777473202000,-150.0,0.00016712,2]
[421341336,1777473202000,-150.0,0.00016712,4]
[421341337,1777473202000,-150.0,0.00016712,2]
[421341353,1777473202000,-500.0,0.00016729,2]
[421341343,1777473202000,-500.0,0.00016729,2]
[421341341,1777473202000,-154.60966813,0.00016712,2]
[421341342,1777473202000,-187.46,0.00016712,2]
[421341334,1777473202000,-1573.0,0.00016657,2]
[421341339,1777473202000,-299.00908518,0.00016712,2]
[421341340,1777473202000,-150.0,0.00016712,2]
[421341335,1777473202000,-2169.51546811,0.00016675,2]
[421341356,1777473202000,-39530.36246923,0.0001673,2]
[421341347,1777473202000,-150.0,0.00016729,2]
[421341344,1777473202000,-500.0,0.00016729,2]
[421341350,1777473202000,-500.0,0.00016729,2]
[421341349,1777473202000,-500.0,0.00016729,2]
[421341354,1777473202000,-570484.64016449,0.0001673,2]
[421341352,1777473202000,-500.0,0.00016729,2]
[421341346,1777473202000,-505.34995514,0.00016729,2]
[421341351,1777473202000,-500.0,0.00016729,2]
[421341348,1777473202000,-500.0,0.00016729,2]
[421341355,1777473202000,-310.546,0.0001673,2]
[421341345,1777473202000,-462.265896,0.00016729,2]
[421341357,1777473204000,500.0,8.275e-05,2]
[421341359,1777473204000,500.0,8.275e-05,2]
[421341358,1777473204000,500.0,8.275e-05,2]
[421341360,1777473204000,318.94620834,8.275e-05,2]
[421341361,1777473204000,181.05379166,8.275e-05,2]
[421341362,1777473204000,3644.32237485,8.263e-05,2]
[421341364,1777473206000,365.59747845,8.275e-05,2]
[421341363,1777473206000,350.0,8.275e-05,2]
[421341366,1777473208000,40.96364496,8.275e-05,2]
[421341365,1777473208000,459.03635504,8.275e-05,2]
[421341367,1777473209000,500.0,8.275e-05,2]
[421341368,1777473210000,500.0,8.275e-05,2]
[421341369,1777473212000,674.56557419,8.266e-05,2]
[421341370,1777473215000,500.0,8.275e-05,2]
[421341371,1777473216000,150.0,8.274e-05,2]
[421341375,1777473217000,1056.21847419,8.176e-05,2]
[421341374,1777473217000,5000.01,8.176e-05,2]
[421341373,1777473217000,5000.01,8.176e-05,2]
[421341372,1777473217000,3675.44442581,8.176e-05,2]
[421341377,1777473218000,500.0,8.275e-05,2]
[421341376,1777473218000,500.0,8.275e-05,2]
[421341379,1777473247000,169.09123736,8.275e-05,2]
[421341380,1777473247000,500.0,8.275e-05,2]
[421341378,1777473247000,500.0,8.275e-05,2]
[421341382,1777473336000,8830.91876264,8.176e-05,2]
[421341383,1777473336000,10000.01,8.176e-05,2]
[421341384,1777473336000,10000.01,8.176e-05,2]
[421341385,1777473336000,10000.01,8.176e-05,2]
[421341388,1777473336000,10000.01,8.176e-05,2]
[421341386,1777473336000,10000.01,8.176e-05,2]
[421341390,1777473336000,10000.01,8.176e-05,2]
[421341387,1777473336000,10000.01,8.176e-05,2]
[421341389,1777473336000,10000.01,8.176e-05,2]
[421341391,1777473336000,10000.01,8.176e-05,2]
[421341398,1777473336000,5000.01,8.176e-05,2]
[421341393,1777473336000,5000.01,8.176e-05,2]
[421341403,1777473336000,5000.01,8.176e-05,2]
[421341392,1777473336000,5000.01,8.176e-05,2]
[421341401,1777473336000,5000.01,8.176e-05,2]
[421341400,1777473336000,5000.01,8.176e-05,2]
[421341402,1777473336000,5000.01,8.176e-05,2]
[421341399,1777473336000,5000.01,8.176e-05,2]
[421341395,1777473336000,5000.01,8.176e-05,2]
[421341394,1777473336000,5000.01,8.176e-05,2]
[421341396,1777473336000,5000.01,8.176e-05,2]
[421341397,1777473336000,5000.01,8.176e-05,2]
[421341406,1777473337000,5000.01,8.176e-05,2]
[421341405,1777473337000,5000.01,8.176e-05,2]
[421341404,1777473337000,5000.01,8.176e-05,2]
[421341423,1777473756000,180.42,6.348e-05,2]
[421341424,1777473764000,150.0,8.175e-05,2]
[421341425,1777473764000,-9669.59,8.176e-05,2]
[421341426,1777473766000,-10000.01,8.176e-05,2]
[421341427,1777473766000,2000.00815398,0.00030137,120]
[421341428,1777473767000,-10000.01,8.176e-05,2]
[421341430,1777473771000,2341.077,8.012e-05,2]
[421341431,1777473771000,215.82,8.012e-05,2]
[421341429,1777473771000,250.0,8.101e-05,2]